[Event "Chinese Chess League 2019"]
[Site "Shen Yang"]
[Date "2019.11.22"]
[Round "17.16"]
[White "Zvjaginsev, Vadim"]
[Black "Liu, Yan"]
[Result "1-0"]
[ECO "A26"]
[WhiteElo "2626"]
[BlackElo "2516"]
[Annotator "RC"]
[PlyCount "89"]
[EventDate "2019.04.09"]
[EventType "team-tourn"]
[EventCountry "CHN"]
[SourceTitle "playchess.com"]
[Source "ChessBase"]
[SourceQuality "1"]
[TimeControl "5400+30"]

1. c4 {[%emt 0:00:00]} Nf6 {[%emt 0:00:31]} 2. Nc3 {[%emt 0:00:00]} e5 {[%emt 0:00:59]} 3. Nf3 {[%emt 0:00:02]} Nc6 {[%emt 0:00:18]} 4. a3 {[%emt 0:00:08]} d6 {[%emt 0:03:17]} 5. d3 {[%emt 0:03:20]} g6 {[%emt 0:01:32]} 6. g3 {[%emt 0:00:10]} Bg7 {[%emt 0:00:18]} 7. Bg2 {[%emt 0:00:04]} O-O {[%emt 0:00:26]} 8. O-O {[%emt 0:00:06]} a5 {[%emt 0:05:38]} 9. Rb1 {[%emt 0:00:47]} h6 {[%emt 0:02:07]} 10. b4 {[%emt 0:00:57]} axb4 {[%emt 0:03:57]} 11. axb4 {[%emt 0:00:16]} Be6 {[%emt 0:02:40]} 12. b5 {[%emt 0:00:24]} Ne7 {[%emt 0:00:53]} 13. Bb2 {[%emt 0:06:58]} Nd7 {[%emt 0:06:49]} 14. Ra1 {[%emt 0:07:49]} e4 {[%emt 0:07:45]} 15. Nd2 {[%emt 0:03:19]} exd3 {[%emt 0:00:20]} 16. exd3 {[%emt 0:00:56]} Nc5 {[%emt 0:00:44]} 17. Nb3 {[%emt 0:04:57]} Rxa1 {[%emt 0:11:38]} 18. Bxa1 {[%emt 0:00:10]} b6 {[%emt 0:00:51]} 19. Ne4 {[%emt 0:06:23]} Bxa1 {[%emt 0:09:50]} 20. Nbxc5 {[%emt 0:02:22]} Bd4 {[%emt 0:01:34]} 21. Nxe6 {[%emt 0:02:04]} fxe6 {[%emt 0:00:04]} 22. Qg4 {[%emt 0:01:31]} e5 {[%emt 0:00:42]} 23. h4 {[%emt 0:13:34]} Kg7 {[%emt 0:03:28]} 24. h5 {[%emt 0:00:00]} Qc8 {[%emt 0:04:51]} 25. Qxc8 {[%emt 0:00:00]} Rxc8 {[%emt 0:00:19]} 26. hxg6 {[%emt 0:00:00]} Nxg6 {[%emt 0:00:49]} 27. Nd2 {[%emt 0:01:37]} h5 {[%emt 0:04:30]} 28. Be4 {[%emt 0:02:47]} h4 {[%emt 0:02:48]} 29. Kg2 {[%emt 0:00:22]} Rf8 {[%emt 0:10:07]} 30. Nf3 {[%emt 0:01:32]} Rf6 {[%emt 0:04:21]} 31. Nxd4 {[%emt 0:12:46]} exd4 {[%emt 0:00:15]} 32. Bxg6 {[%emt 0:00:33]} Kxg6 {[%emt 0:04:26]} 33. gxh4 {[%emt 0:01:28]} Rf5 {[%emt 0:01:47]} 34. Kg3 {[%emt 0:08:08]} d5 {[%emt 0:01:17]} 35. Rd1 {[%emt 0:01:27]} Re5 {[%emt 0:01:29]} 36. Kg4 {[%emt 0:03:01]} Re2 {[%emt 0:01:45]} 37. f4 {[%emt 0:03:04]} Rc2 {[%emt 0:02:36]} 38. cxd5 {[%emt 0:00:43]} Rc5 {[%emt 0:00:01]} 39. f5+ {[%emt 0:02:46]} Kf6 {[%emt 0:01:17]} 40. h5 {[%emt 0:00:51]} Rxb5 {[%emt 0:00:22]} 41. Rc1 {[%emt 0:01:15]} Rxd5 {[%emt 0:00:29]} 42. Rc6+ {[%emt 0:00:44]} Rd6 {[%emt 0:00:33]} 43. Rxd6+ {[%emt 0:00:32]} cxd6 {[%emt 0:00:03]} 44. h6 {[%emt 0:00:03]} b5 {[%emt 0:00:15]} 45. Kf3 {[%emt 0:00:04]} 1-0

[Event "Chinese Chess League 2019"]
[Site "Shen Yang"]
[Date "2019.11.22"]
[Round "17.19"]
[White "Tan, Zhongyi"]
[Black "Zhu, Jiner"]
[Result "1-0"]
[ECO "E69"]
[WhiteElo "2504"]
[BlackElo "2468"]
[Annotator "ChessBase"]
[PlyCount "105"]
[EventDate "2019.04.09"]
[EventType "team-tourn"]
[EventCountry "CHN"]
[SourceTitle "playchess.com"]
[Source "ChessBase"]
[SourceQuality "1"]
[TimeControl "5400+30"]

1. d4 {[%emt 0:00:00]} Nf6 {[%emt 0:00:00]} 2. c4 {[%emt 0:00:00]} g6 {[%emt 0:00:00]} 3. Nc3 {[%emt 0:00:51]} Bg7 {[%emt 0:00:00]} 4. g3 {[%emt 0:01:39]} O-O {[%emt 0:00:02]} 5. Bg2 {[%emt 0:00:02]} d6 {[%emt 0:00:06]} 6. Nf3 {[%emt 0:01:34]} c6 {[%emt 0:00:42]} 7. O-O {[%emt 0:00:07]} Qa5 {[%emt 0:00:12]} 8. h3 {[%emt 0:01:09]} e5 {[%emt 0:00:49]} 9. e4 {[%emt 0:00:17]} Nbd7 {[%emt 0:00:07]} 10. Be3 {[%emt 0:02:22]} exd4 {[%emt 0:00:12]} 11. Nxd4 {[%emt 0:03:41]} Nb6 {[%emt 0:00:07]} 12. Nb3 {[%emt 0:10:34]} Qh5 {[%emt 0:00:06]} 13. Nd2 {[%emt 0:03:59]} Be6 {[%emt 0:11:44]} 14. c5 {[%emt 0:05:10]} Qxd1 {[%emt 0:01:59]} 15. Rfxd1 {[%emt 0:01:17]} dxc5 {[%emt 0:00:07]} 16. Bxc5 {[%emt 0:00:07]} Rfd8 {[%emt 0:00:38]} 17. f4 {[%emt 0:01:23]} Nh5 {[%emt 0:08:28]} 18. Nf1 {[%emt 0:10:59]} Nc4 {[%emt 0:04:17]} 19. e5 {[%emt 0:01:24]} Nxb2 {[%emt 0:23:42]} 20. Rxd8+ {[%emt 0:05:41]} Rxd8 {[%emt 0:00:05]} 21. Bxa7 {[%emt 0:02:09]} f6 {[%emt 0:06:24]} 22. Rb1 {[%emt 0:00:32]} fxe5 {[%emt 0:04:23]} 23. f5 {[%emt 0:03:12]} gxf5 {[%emt 0:00:08]} 24. Rxb2 {[%emt 0:00:05]} e4 {[%emt 0:00:26]} 25. Rc2 {[%emt 0:00:16]} Rd3 {[%emt 0:00:32]} 26. Ne2 {[%emt 0:00:22]} Ra3 {[%emt 0:00:18]} 27. Bc5 {[%emt 0:02:19]} Rxa2 {[%emt 0:00:06]} 28. Rxa2 {[%emt 0:00:04]} Bxa2 {[%emt 0:00:07]} 29. Ne3 {[%emt 0:00:36]} Be6 {[%emt 0:06:20]} 30. Kf2 {[%emt 0:03:25]} Be5 {[%emt 0:00:21]} 31. g4 {[%emt 0:04:14]} fxg4 {[%emt 0:01:11]} 32. Nxg4 {[%emt 0:02:14]} Bxg4 {[%emt 0:00:30]} 33. hxg4 {[%emt 0:00:04]} Nf6 {[%emt 0:00:04]} 34. g5 {[%emt 0:01:14]} Ng4+ {[%emt 0:00:40]} 35. Ke1 {[%emt 0:04:43]} Bc7 {[%emt 0:00:44]} 36. Bxe4 {[%emt 0:05:36]} Bd8 {[%emt 0:00:52]} 37. Bf5 {[%emt 0:00:23]} Ne5 {[%emt 0:00:05]} 38. Be6+ {[%emt 0:00:21]} Nf7 {[%emt 0:00:07]} 39. Nf4 {[%emt 0:07:59]} Kg7 {[%emt 0:00:38]} 40. Bd4+ {[%emt 0:00:19]} Kf8 {[%emt 0:00:05]} 41. Bf6 {[%emt 0:00:31]} Bxf6 {[%emt 0:02:29]} 42. gxf6 {[%emt 0:00:44]} Ng5 {[%emt 0:00:02]} 43. Ba2 {[%emt 0:01:32]} Nf3+ {[%emt 0:12:47]} 44. Ke2 {[%emt 0:03:16]} Ne5 {[%emt 0:00:07]} 45. Be6 {[%emt 0:01:51]} b5 {[%emt 0:08:32]} 46. Ke3 {[%emt 0:00:11]} c5 {[%emt 0:00:10]} 47. Ke4 {[%emt 0:00:10]} Nf7 {[%emt 0:00:13]} 48. Bd5 {[%emt 0:02:47]} Nd6+ {[%emt 0:01:19]} 49. Ke5 {[%emt 0:00:08]} Nf7+ {[%emt 0:00:04]} 50. Bxf7 {[%emt 0:02:17]} Kxf7 {[%emt 0:00:06]} 51. Ne6 {[%emt 0:00:03]} Ke8 {[%emt 0:04:44]} 52. Nxc5 {[%emt 0:00:25]} Kf7 {[%emt 0:00:04]} 53. Ne6 {[%emt 0:00:09]} 1-0

[Event "Chinese Chess League 2019"]
[Site "Shen Yang"]
[Date "2019.11.22"]
[Round "17.20"]
[White "Lei, Tingjie"]
[Black "Ding, Yixin"]
[Result "1/2-1/2"]
[ECO "E08"]
[WhiteElo "2485"]
[BlackElo "2438"]
[Annotator "ChessBase"]
[PlyCount "97"]
[EventDate "2019.04.09"]
[EventType "team-tourn"]
[EventCountry "CHN"]
[SourceTitle "playchess.com"]
[Source "ChessBase"]
[SourceQuality "1"]
[TimeControl "5400+30"]

1. d4 {[%emt 0:00:00]} Nf6 {[%emt 0:00:00]} 2. c4 {[%emt 0:00:00]} e6 {[%emt 0:00:04]} 3. g3 {[%emt 0:00:44]} Bb4+ {[%emt 0:00:29]} 4. Bd2 {[%emt 0:00:22]} Be7 {[%emt 0:00:15]} 5. Bg2 {[%emt 0:00:00]} d5 {[%emt 0:00:05]} 6. Nf3 {[%emt 0:00:04]} O-O {[%emt 0:00:12]} 7. O-O {[%emt 0:00:00]} c6 {[%emt 0:01:12]} 8. Qc2 {[%emt 0:01:47]} b6 {[%emt 0:03:45]} 9. Bf4 {[%emt 0:01:01]} Bb7 {[%emt 0:04:32]} 10. Rd1 {[%emt 0:06:31]} Nbd7 {[%emt 0:08:51]} 11. Ne5 {[%emt 0:02:48]} Nh5 {[%emt 0:05:09]} 12. Bc1 {[%emt 0:00:49]} Nhf6 {[%emt 0:01:37]} 13. Bf4 {[%emt 0:06:13]} Nh5 {[%emt 0:00:06]} 14. Bd2 {[%emt 0:00:26]} Nhf6 {[%emt 0:01:48]} 15. cxd5 {[%emt 0:00:38]} cxd5 {[%emt 0:01:53]} 16. Nc6 {[%emt 0:00:49]} Bxc6 {[%emt 0:00:47]} 17. Qxc6 {[%emt 0:00:05]} Rc8 {[%emt 0:00:05]} 18. Qb5 {[%emt 0:06:10]} Nb8 {[%emt 0:04:13]} 19. Nc3 {[%emt 0:02:33]} Nc6 {[%emt 0:03:05]} 20. Be1 {[%emt 0:00:51]} Na5 {[%emt 0:06:33]} 21. e4 {[%emt 0:13:50]} dxe4 {[%emt 0:05:07]} 22. Nxe4 {[%emt 0:00:08]} Nc4 {[%emt 0:00:28]} 23. Nxf6+ {[%emt 0:03:26]} Bxf6 {[%emt 0:00:24]} 24. Bc3 {[%emt 0:00:11]} Nd6 {[%emt 0:02:29]} 25. Qa6 {[%emt 0:07:12]} Qd7 {[%emt 0:06:08]} 26. a4 {[%emt 0:23:05]} Rfd8 {[%emt 0:07:36]} 27. Qe2 {[%emt 0:02:23]} Nf5 {[%emt 0:10:01]} 28. d5 {[%emt 0:02:30]} Bxc3 {[%emt 0:00:15]} 29. bxc3 {[%emt 0:00:05]} exd5 {[%emt 0:01:12]} 30. Rxd5 {[%emt 0:02:05]} Qe6 {[%emt 0:00:12]} 31. Qa6 {[%emt 0:05:47]} Rxd5 {[%emt 0:06:20]} 32. Bxd5 {[%emt 0:00:05]} Qd7 {[%emt 0:00:03]} 33. Qd3 {[%emt 0:07:03]} g6 {[%emt 0:01:52]} 34. c4 {[%emt 0:01:09]} Re8 {[%emt 0:01:18]} 35. a5 {[%emt 0:02:57]} Qc7 {[%emt 0:01:33]} 36. axb6 {[%emt 0:00:16]} axb6 {[%emt 0:00:01]} 37. Qf3 {[%emt 0:01:19]} h5 {[%emt 0:02:51]} 38. h4 {[%emt 0:02:03]} Qe7 {[%emt 0:01:26]} 39. Rb1 {[%emt 0:00:37]} Nd4 {[%emt 0:01:35]} 40. Qd3 {[%emt 0:00:18]} Qf6 {[%emt 0:00:01]} 41. Be4 {[%emt 0:01:02]} Kg7 {[%emt 0:01:19]} 42. Rd1 {[%emt 0:00:31]} Ne6 {[%emt 0:00:12]} 43. Bd5 {[%emt 0:00:11]} Nc7 {[%emt 0:03:15]} 44. Bg2 {[%emt 0:00:30]} Ne6 {[%emt 0:00:12]} 45. Rb1 {[%emt 0:01:05]} Nd4 {[%emt 0:00:26]} 46. Be4 {[%emt 0:00:25]} Rxe4 {[%emt 0:01:18]} 47. Qxe4 {[%emt 0:00:26]} Nf3+ {[%emt 0:00:03]} 48. Kg2 {[%emt 0:00:19]} Nd2 {[%emt 0:00:06]} 49. Qd3 {[%emt 0:00:48]} 1/2-1/2

[Event "Chinese Chess League 2019"]
[Site "Shen Yang"]
[Date "2019.11.22"]
[Round "17.21"]
[White "Zhao, Yuanhe"]
[Black "Nie, Xinyang"]
[Result "1-0"]
[ECO "A41"]
[WhiteElo "2472"]
[BlackElo "2351"]
[Annotator "ChessBase"]
[PlyCount "77"]
[EventDate "2019.04.09"]
[EventType "team-tourn"]
[EventCountry "CHN"]
[SourceTitle "playchess.com"]
[Source "ChessBase"]
[SourceQuality "1"]
[TimeControl "5400+30"]

1. c4 {[%emt 0:00:00]} d6 {[%emt 0:01:36]} 2. Nc3 {[%emt 0:02:36]} e5 {[%emt 0:00:15]} 3. Nf3 {[%emt 0:04:25]} Nc6 {[%emt 0:00:57]} 4. d4 {[%emt 0:05:50]} g6 {[%emt 0:08:10]} 5. d5 {[%emt 0:03:56]} Nce7 {[%emt 0:00:52]} 6. c5 {[%emt 0:00:14]} Bg7 {[%emt 0:11:43]} 7. Qa4+ {[%emt 0:03:31]} Kf8 {[%emt 0:18:08]} 8. cxd6 {[%emt 0:05:30]} cxd6 {[%emt 0:00:04]} 9. e4 {[%emt 0:00:56]} f5 {[%emt 0:01:38]} 10. Be2 {[%emt 0:08:50]} Nf6 {[%emt 0:02:05]} 11. O-O {[%emt 0:01:43]} h6 {[%emt 0:02:07]} 12. Nd2 {[%emt 0:02:32]} g5 {[%emt 0:07:36]} 13. Qa3 {[%emt 0:02:38]} a6 {[%emt 0:10:19]} 14. Nc4 {[%emt 0:04:49]} Ne8 {[%emt 0:01:03]} 15. Be3 {[%emt 0:01:35]} b5 {[%emt 0:06:10]} 16. Nxb5 {[%emt 0:05:50]} axb5 {[%emt 0:00:20]} 17. Qxa8 {[%emt 0:00:04]} bxc4 {[%emt 0:00:04]} 18. Qa7 {[%emt 0:01:43]} Nf6 {[%emt 0:05:00]} 19. f3 {[%emt 0:00:26]} g4 {[%emt 0:02:29]} 20. fxg4 {[%emt 0:13:55]} f4 {[%emt 0:00:06]} 21. Bb6 {[%emt 0:01:56]} Qe8 {[%emt 0:00:04]} 22. Bf3 {[%emt 0:00:59]} Bxg4 {[%emt 0:01:30]} 23. Qc7 {[%emt 0:03:47]} Bxf3 {[%emt 0:01:25]} 24. gxf3 {[%emt 0:02:15]} Qg6+ {[%emt 0:00:45]} 25. Kf2 {[%emt 0:00:26]} Nxe4+ {[%emt 0:05:11]} 26. fxe4 {[%emt 0:01:08]} Bf6 {[%emt 0:00:03]} 27. Qxc4 {[%emt 0:03:08]} Kf7 {[%emt 0:01:49]} 28. Rg1 {[%emt 0:13:00]} Qh5 {[%emt 0:00:15]} 29. Qe2 {[%emt 0:00:47]} Qh3 {[%emt 0:04:06]} 30. Qf3 {[%emt 0:03:10]} Qxh2+ {[%emt 0:05:37]} 31. Rg2 {[%emt 0:00:09]} Qh4+ {[%emt 0:00:07]} 32. Kg1 {[%emt 0:00:20]} Rg8 {[%emt 0:02:32]} 33. Rxg8 {[%emt 0:00:09]} Nxg8 {[%emt 0:00:12]} 34. Bf2 {[%emt 0:00:11]} Qg5+ {[%emt 0:00:07]} 35. Kh1 {[%emt 0:00:23]} h5 {[%emt 0:00:03]} 36. Rg1 {[%emt 0:00:13]} Qh6 {[%emt 0:00:03]} 37. Qh3 {[%emt 0:00:09]} Ne7 {[%emt 0:00:55]} 38. Qe6+ {[%emt 0:00:06]} Ke8 {[%emt 0:00:15]} 39. Rg8+ {[%emt 0:00:10]} 1-0

[Event "Chinese Chess League 2019"]
[Site "Shen Yang"]
[Date "2019.11.22"]
[Round "17.24"]
[White "Javakhishvili, Lela"]
[Black "Li, Yunshan"]
[Result "1-0"]
[ECO "A33"]
[WhiteElo "2457"]
[BlackElo "2287"]
[Annotator "ChessBase"]
[PlyCount "79"]
[EventDate "2019.04.09"]
[EventType "team-tourn"]
[EventCountry "CHN"]
[SourceTitle "playchess.com"]
[Source "ChessBase"]
[SourceQuality "1"]
[TimeControl "5400+30"]

1. Nf3 {[%emt 0:00:00]} Nf6 {[%emt 0:00:00]} 2. c4 {[%emt 0:00:00]} c5 {[%emt 0:00:00]} 3. d4 {[%emt 0:00:02]} cxd4 {[%emt 0:00:03]} 4. Nxd4 {[%emt 0:00:07]} e5 {[%emt 0:00:16]} 5. Nb5 {[%emt 0:01:21]} Nc6 {[%emt 0:00:22]} 6. N1c3 {[%emt 0:00:35]} d6 {[%emt 0:00:37]} 7. Bg5 {[%emt 0:02:59]} a6 {[%emt 0:00:35]} 8. Na3 {[%emt 0:01:34]} Be7 {[%emt 0:01:15]} 9. e3 {[%emt 0:03:48]} Be6 {[%emt 0:02:05]} 10. Be2 {[%emt 0:00:51]} O-O {[%emt 0:01:02]} 11. O-O {[%emt 0:00:46]} Qa5 {[%emt 0:05:31]} 12. Bxf6 {[%emt 0:09:14]} Bxf6 {[%emt 0:00:45]} 13. Nd5 {[%emt 0:02:52]} Bg5 {[%emt 0:02:14]} 14. Qb3 {[%emt 0:04:48]} Rab8 {[%emt 0:08:04]} 15. Rfd1 {[%emt 0:03:19]} Rfd8 {[%emt 0:05:12]} 16. Rac1 {[%emt 0:02:19]} Ne7 {[%emt 0:01:39]} 17. Bf3 {[%emt 0:11:11]} Ng6 {[%emt 0:19:40]} 18. g3 {[%emt 0:05:06]} f5 {[%emt 0:07:27]} 19. h4 {[%emt 0:04:04]} Bh6 {[%emt 0:02:10]} 20. h5 {[%emt 0:01:42]} Nf8 {[%emt 0:00:30]} 21. Nc2 {[%emt 0:06:19]} Nd7 {[%emt 0:05:52]} 22. a3 {[%emt 0:01:39]} Rf8 {[%emt 0:01:57]} 23. Qb4 {[%emt 0:04:22]} Qxb4 {[%emt 0:03:44]} 24. Ncxb4 {[%emt 0:00:24]} Kf7 {[%emt 0:07:25]} 25. Nc7 {[%emt 0:00:48]} Rfc8 {[%emt 0:00:15]} 26. Nxe6 {[%emt 0:02:39]} Kxe6 {[%emt 0:00:03]} 27. Rc2 {[%emt 0:03:22]} g6 {[%emt 0:01:42]} 28. hxg6 {[%emt 0:01:20]} hxg6 {[%emt 0:00:03]} 29. Bd5+ {[%emt 0:01:24]} Kf6 {[%emt 0:01:07]} 30. Kg2 {[%emt 0:01:44]} a5 {[%emt 0:02:05]} 31. Na2 {[%emt 0:00:35]} b5 {[%emt 0:00:46]} 32. b4 {[%emt 0:01:26]} axb4 {[%emt 0:09:56]} 33. Nxb4 {[%emt 0:00:13]} bxc4 {[%emt 0:00:42]} 34. Rxc4 {[%emt 0:02:03]} Nc5 {[%emt 0:06:39]} 35. Rh4 {[%emt 0:03:31]} Bg7 {[%emt 0:01:02]} 36. Ba2 {[%emt 0:01:29]} Bf8 {[%emt 0:04:21]} 37. Nd5+ {[%emt 0:04:03]} Kg7 {[%emt 0:00:21]} 38. Rdh1 {[%emt 0:00:09]} g5 {[%emt 0:00:44]} 39. Rh7+ {[%emt 0:00:10]} Kg6 {[%emt 0:00:10]} 40. Ne7+ {[%emt 0:00:18]} 1-0

[Event "Chinese Chess League 2019"]
[Site "Shen Yang"]
[Date "2019.11.22"]
[Round "17.25"]
[White "Huang, Qian"]
[Black "Lagno, Kateryna"]
[Result "1/2-1/2"]
[ECO "A16"]
[WhiteElo "2427"]
[BlackElo "2549"]
[Annotator "ChessBase"]
[PlyCount "60"]
[EventDate "2019.04.09"]
[EventType "team-tourn"]
[EventCountry "CHN"]
[SourceTitle "playchess.com"]
[Source "ChessBase"]
[SourceQuality "1"]
[TimeControl "5400+30"]

1. c4 {[%emt 0:00:00]} Nf6 {[%emt 0:00:00]} 2. Nc3 {[%emt 0:00:00]} g6 {[%emt 0:00:00]} 3. e4 {[%emt 0:02:37]} e5 {[%emt 0:00:07]} 4. Nf3 {[%emt 0:01:46]} Bg7 {[%emt 0:00:10]} 5. Nxe5 {[%emt 0:08:50]} O-O {[%emt 0:00:05]} 6. Nf3 {[%emt 0:00:52]} Re8 {[%emt 0:00:17]} 7. d3 {[%emt 0:00:35]} d5 {[%emt 0:00:05]} 8. cxd5 {[%emt 0:03:10]} Nxd5 {[%emt 0:00:06]} 9. Nxd5 {[%emt 0:00:19]} Qxd5 {[%emt 0:00:05]} 10. Be2 {[%emt 0:00:07]} Qd6 {[%emt 0:00:08]} 11. O-O {[%emt 0:02:17]} c5 {[%emt 0:00:06]} 12. e5 {[%emt 0:20:50]} Qd5 {[%emt 0:24:31]} 13. Be3 {[%emt 0:04:21]} Nc6 {[%emt 0:00:15]} 14. Rc1 {[%emt 0:19:47]} Nxe5 {[%emt 0:01:20]} 15. Rxc5 {[%emt 0:04:16]} Qxa2 {[%emt 0:02:24]} 16. Nxe5 {[%emt 0:02:58]} Rxe5 {[%emt 0:00:04]} 17. Rc7 {[%emt 0:02:02]} Re8 {[%emt 0:03:49]} 18. d4 {[%emt 0:05:05]} Be6 {[%emt 0:02:17]} 19. Bf3 {[%emt 0:00:06]} Rad8 {[%emt 0:15:33]} 20. Rxb7 {[%emt 0:01:50]} Bd5 {[%emt 0:05:21]} 21. Bxd5 {[%emt 0:04:21]} Qxd5 {[%emt 0:00:10]} 22. Rxa7 {[%emt 0:00:45]} Bxd4 {[%emt 0:00:06]} 23. Bxd4 {[%emt 0:00:04]} Qxd4 {[%emt 0:00:04]} 24. Qxd4 {[%emt 0:02:30]} Rxd4 {[%emt 0:00:10]} 25. Rb7 {[%emt 0:00:14]} Re2 {[%emt 0:02:57]} 26. g3 {[%emt 0:00:14]} Rdd2 {[%emt 0:00:30]} 27. Kg2 {[%emt 0:00:27]} Rxb2 {[%emt 0:00:06]} 28. Rxb2 {[%emt 0:00:03]} Rxb2 {[%emt 0:00:04]} 29. h4 {[%emt 0:00:04]} h5 {[%emt 0:00:03]} 30. Rc1 {[%emt 0:00:05]} Kg7 {[%emt 0:00:03]} 1/2-1/2

[Event "Chinese Chess League 2019"]
[Site "Shen Yang"]
[Date "2019.11.22"]
[Round "17.29"]
[White "Li, Xueyi"]
[Black "Shen, Yang"]
[Result "1/2-1/2"]
[ECO "D27"]
[WhiteElo "2270"]
[BlackElo "2410"]
[Annotator "ChessBase"]
[PlyCount "61"]
[EventDate "2019.04.09"]
[EventType "team-tourn"]
[EventCountry "CHN"]
[SourceTitle "playchess.com"]
[Source "ChessBase"]
[SourceQuality "1"]
[TimeControl "5400+30"]

1. d4 {[%emt 0:00:00]} d5 {[%emt 0:00:00]} 2. c4 {[%emt 0:00:13]} dxc4 {[%emt 0:01:47]} 3. Nf3 {[%emt 0:02:12]} Nf6 {[%emt 0:00:34]} 4. e3 {[%emt 0:03:11]} e6 {[%emt 0:00:13]} 5. Bxc4 {[%emt 0:00:42]} c5 {[%emt 0:00:25]} 6. O-O {[%emt 0:03:12]} a6 {[%emt 0:00:12]} 7. Nc3 {[%emt 0:02:33]} Nc6 {[%emt 0:03:56]} 8. Bb3 {[%emt 0:02:45]} Be7 {[%emt 0:00:46]} 9. Qe2 {[%emt 0:03:01]} cxd4 {[%emt 0:00:22]} 10. Rd1 {[%emt 0:00:06]} e5 {[%emt 0:00:12]} 11. exd4 {[%emt 0:00:24]} exd4 {[%emt 0:00:12]} 12. Ne5 {[%emt 0:00:42]} Nxe5 {[%emt 0:00:17]} 13. Qxe5 {[%emt 0:00:06]} Qd6 {[%emt 0:00:34]} 14. Qxd6 {[%emt 0:00:32]} Bxd6 {[%emt 0:00:11]} 15. Rxd4 {[%emt 0:00:06]} Be5 {[%emt 0:00:48]} 16. Rb4 {[%emt 0:00:31]} O-O {[%emt 0:00:58]} 17. Bf4 {[%emt 0:00:08]} a5 {[%emt 0:04:22]} 18. Rc4 {[%emt 0:00:08]} Bxf4 {[%emt 0:00:45]} 19. Rxf4 {[%emt 0:00:06]} Ra6 {[%emt 0:00:38]} 20. Re1 {[%emt 0:01:43]} Be6 {[%emt 0:02:38]} 21. Bxe6 {[%emt 0:02:35]} Rxe6 {[%emt 0:00:13]} 22. Rxe6 {[%emt 0:00:11]} fxe6 {[%emt 0:00:07]} 23. Ra4 {[%emt 0:00:21]} b6 {[%emt 0:00:14]} 24. Kf1 {[%emt 0:00:22]} Rc8 {[%emt 0:01:08]} 25. Ke2 {[%emt 0:00:14]} Kf7 {[%emt 0:00:10]} 26. Kd3 {[%emt 0:00:12]} Ke7 {[%emt 0:00:09]} 27. Rc4 {[%emt 0:00:10]} Rd8+ {[%emt 0:00:50]} 28. Rd4 {[%emt 0:00:06]} Rc8 {[%emt 0:00:16]} 29. Rc4 {[%emt 0:00:08]} Rd8+ {[%emt 0:00:13]} 30. Rd4 {[%emt 0:00:08]} Rc8 {[%emt 0:00:06]} 31. Rc4 {[%emt 0:00:14]} 1/2-1/2

[Event "Chinese Chess League 2019"]
[Site "Shen Yang"]
[Date "2019.11.22"]
[Round "17.30"]
[White "Dzagnidze, Nana"]
[Black "Guo, Qi"]
[Result "1/2-1/2"]
[ECO "D27"]
[WhiteElo "2502"]
[BlackElo "2403"]
[Annotator "ChessBase"]
[PlyCount "73"]
[EventDate "2019.04.09"]
[EventType "team-tourn"]
[EventCountry "CHN"]
[SourceTitle "playchess.com"]
[Source "ChessBase"]
[SourceQuality "1"]
[TimeControl "5400+30"]

1. c4 {[%emt 0:00:00]} e6 {[%emt 0:00:00]} 2. Nf3 {[%emt 0:00:00]} d5 {[%emt 0:00:00]} 3. e3 {[%emt 0:00:03]} Nf6 {[%emt 0:00:00]} 4. Nc3 {[%emt 0:00:11]} c5 {[%emt 0:01:42]} 5. d4 {[%emt 0:00:17]} dxc4 {[%emt 0:02:49]} 6. Bxc4 {[%emt 0:00:20]} a6 {[%emt 0:00:07]} 7. O-O {[%emt 0:01:15]} b5 {[%emt 0:05:28]} 8. Be2 {[%emt 0:00:05]} Bb7 {[%emt 0:01:44]} 9. b3 {[%emt 0:09:24]} Nbd7 {[%emt 0:02:13]} 10. Bb2 {[%emt 0:01:16]} Be7 {[%emt 0:00:09]} 11. a4 {[%emt 0:03:15]} cxd4 {[%emt 0:05:20]} 12. Nxd4 {[%emt 0:00:09]} b4 {[%emt 0:04:21]} 13. Nb1 {[%emt 0:00:32]} O-O {[%emt 0:00:06]} 14. Nd2 {[%emt 0:00:40]} a5 {[%emt 0:02:14]} 15. Bf3 {[%emt 0:30:32]} Nd5 {[%emt 0:05:16]} 16. Rc1 {[%emt 0:02:17]} Bf6 {[%emt 0:01:47]} 17. Nc4 {[%emt 0:12:55]} Qb8 {[%emt 0:05:15]} 18. Nb5 {[%emt 0:05:18]} Ne5 {[%emt 0:09:46]} 19. Bxe5 {[%emt 0:05:02]} Bxe5 {[%emt 0:00:25]} 20. Nxe5 {[%emt 0:04:33]} Qxe5 {[%emt 0:00:07]} 21. Rc5 {[%emt 0:00:11]} Rac8 {[%emt 0:04:25]} 22. Qd4 {[%emt 0:02:09]} Qb8 {[%emt 0:01:01]} 23. Na7 {[%emt 0:08:28]} e5 {[%emt 0:08:36]} 24. Rxc8 {[%emt 0:00:30]} Rxc8 {[%emt 0:00:48]} 25. Qd3 {[%emt 0:02:38]} Qxa7 {[%emt 0:08:14]} 26. Bxd5 {[%emt 0:00:07]} Bxd5 {[%emt 0:00:04]} 27. Qxd5 {[%emt 0:00:04]} Qc5 {[%emt 0:00:13]} 28. Qd7 {[%emt 0:02:23]} Qc7 {[%emt 0:02:20]} 29. Qxc7 {[%emt 0:01:20]} Rxc7 {[%emt 0:00:04]} 30. Rd1 {[%emt 0:00:03]} f6 {[%emt 0:00:08]} 31. Kf1 {[%emt 0:01:33]} Rc3 {[%emt 0:00:26]} 32. Rd5 {[%emt 0:00:11]} Rxb3 {[%emt 0:00:04]} 33. Rxa5 {[%emt 0:00:03]} Ra3 {[%emt 0:00:22]} 34. Ra8+ {[%emt 0:01:32]} Kf7 {[%emt 0:00:05]} 35. a5 {[%emt 0:00:03]} b3 {[%emt 0:00:06]} 36. Rb8 {[%emt 0:00:04]} Rxa5 {[%emt 0:00:07]} 37. Rxb3 {[%emt 0:00:06]} 1/2-1/2

[Event "Chinese Chess League 2019"]
[Site "Shen Yang"]
[Date "2019.11.23"]
[Round "18.3"]
[White "Zhao, Jun"]
[Black "Chen, Qi b"]
[Result "1/2-1/2"]
[ECO "D30"]
[WhiteElo "2641"]
[BlackElo "2436"]
[Annotator "ChessBase"]
[PlyCount "60"]
[EventDate "2019.04.09"]
[EventType "team-tourn"]
[EventCountry "CHN"]
[SourceTitle "playchess.com"]
[Source "ChessBase"]
[SourceQuality "1"]
[TimeControl "5400+30"]

1. d4 {[%emt 0:00:00]} Nf6 {[%emt 0:00:21]} 2. c4 {[%emt 0:00:03]} e6 {[%emt 0:02:47]} 3. Nf3 {[%emt 0:03:07]} d5 {[%emt 0:00:16]} 4. Bg5 {[%emt 0:00:36]} dxc4 5. Qa4+ {[%emt 0:06:04]} Nbd7 6. Nc3 {[%emt 0:12:02]} a6 {[%emt 0:10:22]} 7. e3 {[%emt 0:05:13]} Be7 {[%emt 0:14:24]} 8. Bxc4 {[%emt 0:01:48]} O-O {[%emt 0:03:31]} 9. Qc2 {[%emt 0:07:24]} h6 {[%emt 0:13:21]} 10. Bxf6 {[%emt 0:00:28]} Nxf6 {[%emt 0:00:00]} 11. O-O {[%emt 0:16:08]} b5 {[%emt 0:01:07]} 12. Bd3 {[%emt 0:00:00]} Bb7 {[%emt 0:01:39]} 13. Ne4 {[%emt 0:04:57]} Rc8 {[%emt 0:04:07]} 14. Rfd1 {[%emt 0:00:00]} c5 {[%emt 0:11:06]} 15. Nxf6+ {[%emt 0:10:33]} gxf6 {[%emt 0:03:02]} 16. dxc5 {[%emt 0:00:15]} Qa5 {[%emt 0:01:42]} 17. Qb1 {[%emt 0:09:06]} Qb4 {[%emt 0:08:20]} 18. Nd4 {[%emt 0:00:43]} f5 {[%emt 0:04:09]} 19. a4 {[%emt 0:04:11]} bxa4 {[%emt 0:01:12]} 20. c6 {[%emt 0:04:03]} Bxc6 {[%emt 0:05:12]} 21. Bxa6 {[%emt 0:03:16]} Be4 {[%emt 0:02:36]} 22. Qa2 {[%emt 0:00:00]} Ra8 {[%emt 0:02:46]} 23. Bc4 {[%emt 0:00:00]} a3 {[%emt 0:01:06]} 24. bxa3 {[%emt 0:00:00]} Rxa3 {[%emt 0:00:06]} 25. Qxa3 {[%emt 0:00:05]} Qxa3 {[%emt 0:00:03]} 26. Rxa3 {[%emt 0:00:05]} Bxa3 {[%emt 0:00:01]} 27. Bd3 {[%emt 0:00:27]} Ba8 {[%emt 0:02:30]} 28. Be2 {[%emt 0:01:22]} Rd8 {[%emt 0:04:32]} 29. Nc2 {[%emt 0:00:28]} Rxd1+ {[%emt 0:00:00]} 30. Bxd1 {[%emt 0:03:05]} Bc5 {[%emt 0:00:00]} 1/2-1/2